Cogmind - Beta 15 --- EXPLORER MODE // 2025.06.10 @ 20:08:22 Player: aaa Result: Destroyed by as-61045 with Assembled F-torch Performance ------------- Evolutions (0) 0 Regions Visited (4) 800 Robots Destroyed (22) 110 Value Destroyed (443) 443 Prototype IDs (4) 80 Alien Tech Used (0) 0 Bonus (78) 78 TOTAL SCORE: 1511 Bonus ------- Follower Combat Kills 78 Cogmind --------- Core Integrity 0/250 Matter 300/300 Energy 84/100 System Corruption 0% Temperature Cool (22) Movement Flying (37) Location -9/Mines Parts ------- > --- POWER (1) -------- (None) > --- PROPULSION (2) --- Flight Unit Flight Unit > --- UTILITY (3) ------ Experimental Sensor Array Signal Interpreter Propulsion Shielding > --- WEAPON (2) ------- Mace Mace > --- INVENTORY (5) ---- Power Shielding Datajack Enhanced Flamer Mace Peak State ------------ > --- POWER ------------ (None) > --- PROPULSION ------- Flight Unit Flight Unit > --- UTILITY ---------- Experimental Sensor Array Signal Interpreter Propulsion Shielding > --- WEAPON ----------- Mace Mace > --- INVENTORY -------- Power Shielding Datajack Enhanced Flamer Mace [Rating: 17] Favorites ----------- Power Ion Engine Engine Ion Engine Propulsion Flight Unit Leg Improved Aluminum Leg Flight Unit Flight Unit Utility Signal Interpreter Device Structural Scanner Storage Medium Storage Unit Processor Signal Interpreter Protection Propulsion Shielding Weapon Mace Ballistic Gun Light Assault Rifle Impact Weapon Mace Special Melee Weapon Datajack Build | -11 -10 -10 -10 -9 ------- Run | Yrd Mat Min Exi Min Slots Evolved 1 | . 1 . . . Power . | . . . . . Propulsion . | . . . . . Utility 1 | . 1 . . . Weapon . | . . . . . Parts Attached 24 | 7 12 5 . . Power 2 | 1 1 . . . Engine 2 | 1 1 . . . Core . | . . . . . Reactor . | . . . . . Propulsion 9 | 2 4 3 . . Treads . | . . . . . Leg 4 | 2 2 . . . Wheel . | . . . . . Hover . | . . . . . Flight 5 | . 2 3 . . Utility 7 | 2 3 2 . . Device 3 | 1 1 1 . . Storage 1 | 1 . . . . Processor 2 | . 2 . . . Hackware . | . . . . . Protection 1 | . . 1 . . Artifact . | . . . . . Weapon 6 | 2 4 . . . Energy Gun . | . . . . . Energy Cannon . | . . . . . Ballistic Gun 2 | 2 . . . . Ballistic Cannon . | . . . . . Launcher . | . . . . . Special Weapon . | . . . . . Impact Weapon 3 | . 3 . . . Slashing Weapon . | . . . . . Piercing Weapon . | . . . . . Special Melee Weapon 1 | . 1 . . . Unidentified Prototypes 1 | . . 1 . . Parts Lost 4 | . . 4 . . Power 1 | . . 1 . . Propulsion 3 | . . 3 . . Utility . | . . . . . Weapon . | . . . . . Highest Loss Streak 3 | . . 3 . . To Critical Strikes . | . . . . . Average Backups 5 | 1 7 4 4 4 Power . | . . . . . Propulsion . | . 1 . . . Utility 1 | . 2 1 1 1 Weapon 2 | . 3 2 2 2 Tool/Special . | . . . . . Unused Backups 9 | . 6 1 . 2 Power . | . . . . . Propulsion 2 | . 2 . . . Utility 4 | . 2 1 . 1 Weapon 3 | . 2 . . 1 Tool/Special . | . . . . . Average Slot Usage (%) 89 | . 97 78 87 87 Engine 7 | . 11 6 . . Leg 9 | . 20 . . . Flight 13 | . 4 17 25 25 Device 11 | . 11 12 12 12 Storage 4 | . 10 . . . Processor 11 | . 11 12 12 12 Protection 4 | . . 4 12 12 Ballistic Gun 8 | . 17 . . . Impact Weapon 16 | . 6 25 25 25 Peak Build Rating 17 | 7 13 17 17 17 Average Rating 11 | 5 10 9 17 17 On Entrance 10 | . 7 9 17 17 Naked Turns . | . . . . . Heaviest Build 20 | 20 20 8 6 6 Greatest Support 26 | 20 26 8 8 8 Greatest Overweight (x) 1 | 1 1 1 . . Average Overweight (x) . | . . . . . Largest Inventory Capacity 10 | 10 10 5 5 5 Average Capacity 7 | 8 9 5 5 5 Most Carried 10 | 2 10 5 4 4 Average Carried 5 | 1 7 4 4 4 Final Capacity 10 | 10 5 5 5 5 Final Carried 5 | 2 5 4 4 4 Class Distribution -------------------- 100% | Hacker-Mutant Dominant Class ---------------- Hacker-Mutant | -10/Materials Hacker-Mutant | -10/Mines Hacker-Mutant | -10/Exiles Hacker-Mutant | -9/Mines Resources | -11 -10 -10 -10 -9 ----------- Run | Yrd Mat Min Exi Min Matter Collected 545 | 198 302 45 . . Remotely . | . . . . . Salvage Created 641 | . 249 384 . 8 Parts 18 | . 13 5 . . Haulers Intercepted . | . . . . . Recyclers Shooed 1 | . 1 . . . Parts Field Recycled . | . . . . . Retrieved Matter . | . . . . . Parts Self-Destructed . | . . . . . Prevented . | . . . . . Kills | -11 -10 -10 -10 -9 ------- Run | Yrd Mat Min Exi Min Combat Hostiles Destroyed 11 | . 6 4 . 1 Melee 4 | . 2 1 . 1 Guns 2 | . 2 . . . Classes Destroyed 9 | . 4 4 . 1 Worker 3 | . . 3 . . Builder 1 | . . 1 . . Tunneler 4 | . 1 3 . . Recycler 1 | . . 1 . . Watcher 3 | . 3 . . . Swarmer 2 | . 2 . . . Grunt 6 | . 4 2 . . Sentry 2 | . . 2 . . Assembled 1 | . . . . 1 Best Kill Streak 3 | . 2 3 . 1 Combat Bots Only 2 | . 2 2 . 1 Max Kills in Single Turn 1 | . 1 1 . 1 Gunslinging . | . . . . . Exploded . | . . . . . Melee 1 | . 1 1 . 1 Uniques/NPCs Destroyed . | . . . . . Combat | -11 -10 -10 -10 -9 -------- Run | Yrd Mat Min Exi Min Hostile Shots Fired 74 | . 34 37 . 3 Missed 14 | . 9 4 . 1 Hits 60 | . 25 33 . 2 Projectile 60 | . 25 33 . 2 AOE 1 | . . . . 1 Critical Strikes 4 | . 3 1 . . Damage Taken 487 | . 162 301 . 24 Core 250 | . 68 176 . 6 Absorbed by Shields . | . . . . . Ignored by Resistances 299 | . 105 180 . 14 Core Remaining (%) 100 | 100 . . . . Volleys Fired 15 | . 15 . . . Largest 2 | . 2 . . . Hottest 40 | . 40 . . . Shots Fired 30 | . 30 . . . Gun 30 | . 30 . . . Cannon . | . . . . . Launcher . | . . . . . Special . | . . . . . Kinetic 30 | . 30 . . . Thermal . | . . . . . Explosive . | . . . . . Electromagnetic . | . . . . . Robot Hit Streak 14 | . 14 . . . Robot Miss Streak 2 | . 2 . . . Penetration Max . | . . . . . Secondary Targets . | . . . . . Shots Hit Robots 64 | . 37 24 . 3 Core Hits 14 | . 12 1 . 1 Critical Kills 1 | . 1 . . . Critical Parts Destroyed 12 | . 4 8 . . Critical Strikes 13 | . 5 8 . . Destroy 1 | . 1 . . . Smash 12 | . 4 8 . . Melee Attacks 83 | . 18 24 38 3 Impact 82 | . 17 24 38 3 Slashing . | . . . . . Piercing . | . . . . . Sneak Attacks 11 | . 1 10 . . Combat Hostiles 1 | . 1 . . . Follow-up Attacks 3 | . 2 1 . . Damage Inflicted 1867 | . 683 1048 . 136 Guns 237 | . 237 . . . Cannons . | . . . . . Explosions . | . . . . . Melee 1630 | . 446 1048 . 136 Ramming . | . . . . . Kinetic 237 | . 237 . . . Thermal . | . . . . . Explosive . | . . . . . Electromagnetic . | . . . . . Impact 1630 | . 446 1048 . 136 Slashing . | . . . . . Piercing . | . . . . . Highest Corruption . | . . . . . Average Corruption . | . . . . . Corruption Purged . | . . . . . Corruption Blocked . | . . . . . Overload Shots . | . . . . . Overflow Damage 757 | . 131 611 . 15 Projectiles 6 | . 6 . . . Explosions . | . . . . . Melee 751 | . 125 611 . 15 Knockbacks 10 | . 7 2 . 1 Impact 8 | . 5 2 . 1 Kinetic . | . . . . . Secondary 2 | . 2 . . . Self-Inflicted Damage . | . . . . . Shots . | . . . . . Rammed . | . . . . . Targets Rammed . | . . . . . Kicked . | . . . . . Crushed . | . . . . . Highest Temperature 27 | . 27 4 . . Average Temperature 12 | . 13 4 . . Received Heat Transfer 368 | . 138 210 . 20 Siege Activations . | . . . . . Martial Activations . | . . . . . Shielding Activations . | . . . . . Robots Disrupted . | . . . . . Combat Hostiles . | . . . . . Robots Corrupted 8 | . 2 6 . . Combat Hostiles 5 | . 2 3 . . Parts Fried 12 | . 4 8 . . Impact Corruptions 26 | . 5 20 . 1 Robots Melted . | . . . . . Combat Hostiles . | . . . . . Parts Melted . | . . . . . Heat Transferred . | . . . . . Parts Sabotaged . | . . . . . Parts Stolen . | . . . . . Parts Stripped . | . . . . . Power Chain Reactions . | . . . . . Alert | -11 -10 -10 -10 -9 ------- Run | Yrd Mat Min Exi Min Maximum Alert Level . | . . . . . Low Security (%) 100 | 100 100 100 . 100 Level 1 . | . . . . . Level 2 . | . . . . . Level 3 . | . . . . . Level 4 . | . . . . . Level 5 . | . . . . . High Security . | . . . . . Max Security . | . . . . . Peak Influence 52 | . 50 40 . 52 Initial . | . . . . . Average 5 | . 5 4 . 9 Influence Increases 422 | . 240 130 . 52 Destroy 0b10 Robot/C 240 | . 120 80 . 40 Destroy 0b10 Robot/NC 60 | . 20 40 . . Destroy Leader 56 | . 36 10 . 10 Allied During Kill 2 | . . . . 2 Successful Hack 19 | . 19 . . . Lose Combat Pursuer 45 | . 45 . . . Influence Decreases 385 | . 240 130 . 15 Time Decay 385 | . 240 130 . 15 Squads Dispatched . | . . . . . Investigation . | . . . . . Extermination . | . . . . . Reinforcement . | . . . . . Assault . | . . . . . Garrison . | . . . . . Intercept . | . . . . . Searches Triggered . | . . . . . Construction Impeded . | . . . . . Haulers Reinforced . | . . . . . Active Scanning Responses . | . . . . . Cargo Convoy Interrupts . | . . . . . Stealth | -11 -10 -10 -10 -9 --------- Run | Yrd Mat Min Exi Min Distress Signals 1 | . 1 . . . Communications Jammed . | . . . . . Distress Signals . | . . . . . Times Spotted 27 | . 15 4 . 8 Peak Tracking Total 12 | . 3 2 . 12 Tactical Retreats 2 | . 2 . . . Traps | -11 -10 -10 -10 -9 ------- Run | Yrd Mat Min Exi Min Traps Triggered 3 | . 3 . . . Indirectly . | . . . . . Trap Hack Attempts 32 | . 32 . . . Triggered 1 | . 1 . . . Disarmed . | . . . . . Reprogrammed 4 | . 4 . . . Reused . | . . . . . Traps Extracted . | . . . . . Installed . | . . . . . Triggered . | . . . . . Machines | -11 -10 -10 -10 -9 ---------- Run | Yrd Mat Min Exi Min Machines Disabled . | . . . . . Max in Single Turn . | . . . . . Machines Repaired . | . . . . . Machines Dismantled . | . . . . . Machines Sabotaged . | . . . . . Overloaded Fab Kills . | . . . . . Hacking | -11 -10 -10 -10 -9 --------- Run | Yrd Mat Min Exi Min Machines Accessed 12 | . 8 . 4 . Terminals 6 | . 6 . . . Fabricators . | . . . . . Repair Stations . | . . . . . Recycling Units 2 | . 2 . . . Scanalyzers . | . . . . . Garrison Access . | . . . . . Total Hacks 30 | . 26 . 4 . Successful 22 | . 18 . 4 . Failed 8 | . 8 . . . Catastrophic . | . . . . . Database Lockouts . | . . . . . Manual 19 | . 18 . 1 . Terminals 23 | . 23 . . . Fabricators . | . . . . . Repair Stations . | . . . . . Recycling Units 3 | . 3 . . . Scanalyzers . | . . . . . Garrison Access . | . . . . . Terminal Hacks 14 | . 10 . 4 . Record 5 | . 1 . 4 . Part Schematic 6 | . 6 . . . Prototype ID Bank 2 | . 2 . . . Locate Traps 1 | . 1 . . . Fabricator Hacks . | . . . . . Repair Station Hacks . | . . . . . Recycling Unit Hacks 2 | . 2 . . . Retrieve Components 2 | . 2 . . . Scanalyzer . | . . . . . Garrison Access Hacks . | . . . . . Unauthorized Hacks 6 | . 6 . . . Terminals 6 | . 6 . . . Track 3 | . 3 . . . Botnet 2 | . 2 . . . Disrupt 1 | . 1 . . . Fabricators . | . . . . . Repair Stations . | . . . . . Recycling Units . | . . . . . Scanalyzers . | . . . . . Garrison Access . | . . . . . Data Cores Recovered . | . . . . . Used . | . . . . . Hacking Detections 7 | . 7 . . . Full Trace Events . | . . . . . Feedback Events . | . . . . . Feedback Blocked . | . . . . . Robot Schematics Acquired . | . . . . . Robots Built . | . . . . . Authchips . | . . . . . Time . | . . . . . Total Robot Build Rating . | . . . . . Part Schematics Acquired 4 | . 4 . . . Parts Built . | . . . . . Authchips . | . . . . . Time . | . . . . . Total Part Build Rating . | . . . . . Parts Repaired . | . . . . . Time . | . . . . . Parts Recycled . | . . . . . Recycled Matter . | . . . . . Retrieved Matter . | . . . . . Retrieved Components 8 | . 8 . . . Parts Scanalyzed . | . . . . . Part Schematics Acquired . | . . . . . Parts Damaged . | . . . . . Bothacking | -11 -10 -10 -10 -9 ------------ Run | Yrd Mat Min Exi Min Used RIF Installer . | . . . . . Robots Hacked . | . . . . . Non-combat . | . . . . . Combat . | . . . . . Robot Hacks Applied . | . . . . . Relay Couplers Released . | . . . . . Fabnet Peak Effective % . | . . . . . Robots Rewired . | . . . . . Allies Hacked . | . . . . . Hacks Repelled . | . . . . . Allies | -11 -10 -10 -10 -9 -------- Run | Yrd Mat Min Exi Min Total Allies 5 | . . 2 . 3 Largest Group 3 | . . 2 1 3 Highest-Rated Group 43 | . . 43 31 40 Highest-Rated Ally 31 | . . 31 31 16 Total Orders . | . . . . . Ally Attacks 8 | . . . . 8 Total Damage 61 | . . . . 61 Kills 2 | . . . . 2 Allies Corrupted . | . . . . . Allies Melted . | . . . . . Intel | -11 -10 -10 -10 -9 ------- Run | Yrd Mat Min Exi Min Active Infowar (turns) 2355 | 64 1069 619 535 68 Sensors 730 | . . 127 535 68 Structural 824 | . 332 492 . . ECM 801 | 64 737 . . . Robot Analysis Total . | . . . . . Derelict Logs Recovered . | . . . . . Drone Launches . | . . . . . Drone Recoveries . | . . . . . Exploration | -11 -10 -10 -10 -9 ------------- Run | Yrd Mat Min Exi Min Turns Passed 2373 | 81 1070 619 535 68 Spaces Moved 2371 | 62 768 659 769 113 Core 33 | 9 . 24 . . Treads . | . . . . . Legs 489 | 53 436 . . . Wheels . | . . . . . Hover . | . . . . . Flight 1849 | . 332 635 769 113 Fastest Speed 37 | 50 37 37 37 37 Average Speed 62 | 112 84 66 37 37 Slowest Speed 190 | 120 190 120 37 37 Overloaded Moves . | . . . . . Propulsion Burnouts . | . . . . . Robots Hopped . | . . . . . Potential Cave-ins . | . . . . . Cave-ins Triggered . | . . . . . Exploration Rate (%) 59 | 3 90 97 90 15 Regions Visited 4 Branch Regions 3 Pre-discovered Areas . | . . . . . Known Exits Taken 4 | 1 1 1 1 . Unknown Exits Taken . | . . . . . Scrap Searched 1 | . . 1 . . Spaces Dug . | . . . . . Terrain Destroyed . | . . . . . Melee . | . . . . . Projectile . | . . . . . AOE . | . . . . . Terrain Rammed . | . . . . . Walls Destroyed . | . . . . . Machines Disabled . | . . . . . Actions | -11 -10 -10 -10 -9 --------- Run | Yrd Mat Min Exi Min Total 3097 | 70 1138 796 959 134 Wait 545 | . 264 105 158 18 Move 2367 | 61 767 658 768 113 Hop . | . . . . . Pick Up 18 | 2 14 2 . . Fast Attach 16 | 7 5 4 . . Attach 5 | . 4 1 . . Detach . | . . . . . Swap 8 | . 8 . . . Drop 17 | . 14 3 . . Fire 15 | . 15 . . . Melee 74 | . 15 23 33 3 Ram . | . . . . . Kick . | . . . . . Crush . | . . . . . Escape Stasis . | . . . . . Rewire . | . . . . . Trap 32 | . 32 . . . Miscellaneous . | . . . . . Route ------- -11/Scrapyard -10/Materials (discovered 5 exits: *Mat x3 / *Min x2) -10/Mines (discovered 4 exits: *Mat x2 / *Exi / *Sub) -10/Exiles -9/Mines History --------- Turn | Location | Event 13 | -11/Scrapyard | Identified exit to Materials 13 | -11/Scrapyard | Discovered exit to Materials (range 15) 82 | -11/Scrapyard | Entered Materials 82 | -10/Materials | Evolved 1 slot: Utility x1 296 | -10/Materials | Identified exit to Mines 296 | -10/Materials | Discovered exit to Mines (range 13) 300 | -10/Materials | Build established: Hacker-Mutant 581 | -10/Materials | Identified exit to Materials 581 | -10/Materials | Discovered exit to Materials (range 16) 703 | -10/Materials | Discovered exit to Mines (range 6) 765 | -10/Materials | Discovered exit to Materials (range 10) 1104 | -10/Materials | Discovered exit to Materials (range 16) 1152 | -10/Materials | Entered Mines 1177 | -10/Mines | Met a Derelict bent on vengeance 1177 | -10/Mines | Discovered exit to Materials (range 12) 1188 | -10/Mines | A weapon hastily lodged in a ceiling crevice suddenly fell to the ground 1507 | -10/Mines | Core integrity fell below 50% 1519 | -10/Mines | Core integrity fell below 20% 1546 | -10/Mines | Lost 3 parts (1p2n) 1586 | -10/Mines | Discovered exit to Materials (range 5) 1613 | -10/Mines | Identified exit to Subcaves 1613 | -10/Mines | Discovered exit to Subcaves (range 9) 1643 | -10/Mines | Found a damaged Exp. Sensor Array with a note attached 1644 | -10/Mines | Found Prototype Device 1644 | -10/Mines | Identified Exp. Sensor Array 1694 | -10/Mines | Deemed a non-threat by the Exiles lab entrance 1694 | -10/Mines | Identified exit to Exiles 1694 | -10/Mines | Discovered exit to Exiles (range 5) 1771 | -10/Mines | Entered Exiles 1771 | -10/Exiles | Found Exiles lab abandoned 1771 | -10/Exiles | Accompanied by 1 ally 1801 | -10/Exiles | Led the pair of lost Derelicts to a safe place 2095 | -10/Exiles | Identified exit to Mines 2095 | -10/Exiles | Discovered exit to Mines (range 15) 2306 | -10/Exiles | Entered Mines 2312 | -9/Mines | Assisted by bots powering up and referring to "LRC-V3" 2316 | -9/Mines | Assembled infested the area 2374 | -9/Mines | Destroyed by as-61045 with Assembled F-torch Last Messages --------------- 02312_ Mercenary 2a: "Hello LRC-V3. What is your command?" 02312_ Trooper 2b: "Hello LRC-V3. What is your command?" 02316_ ALERT: Infestation in the mines, dispatching Demolisher response squad. 02344_ as-06884 destroyed. 02345_ as-50607 destroyed. 02358_ D-53 Grenadier destroyed. 02360_ The unstable cave ceiling collapses. 02361_ D-53 Grenadier destroyed. 02364_ The unstable cave ceiling collapses. 02364_ U-05 Engineer lays Concrete. 02366_ The unstable cave ceiling collapses. 02366_ U-05 Engineer lays Concrete. 02368_ The unstable cave ceiling collapses. 02369_ R-06 Scavenger knocked back. 02371_ Destroyed Com. Wheel. 02371_ R-06 Scavenger system corrupted by crushing effect. Map ----- +----------------------------------------------------+ | ????# #?????????????????????????????? | | ????# #?????????????????????????????? | | ????# #?????????????????????????????? | | ????# #?????????????????????????????? | | ????# #?????????????????????????????? | | ????# #?????????????????????????????? | | ????# #?????????????????????????????? | | ##### #?????????????????????????????? | | # #?????????????????????????????? | | # #?????????????????????????????? | | # #?????????????????????????????? | | ##### #?????????????????????????????? | | ????# #?????????????????????????????? | | ????##### ###????????x?xx?????????????????? | | ????????# #???????????????????????????????? | | ????????# #???????????????????????????????? | | ????????# #???????????????????????????????? | | ???###### #???????????????????????????????? | | ???# % #???????????????????????????????? | | ???# ######???????????????????????????????? | | ???# #######??????????????????????????????? | | ???# # #?????###??????????????????????? | | ??## #?????# ??????????????????????? | | ??# ##????# #??????????????????????? | | ??# #???##a#??????????????????????? | | ??## #???# @##?????????????????????? | | ??## #???# ##????????????????????? | | ??# ##???# #????????????????????? | | ??# ###????## #????????????????????? | | ??### ######## #????????????????????? | | ???# % ### r ##????????????????????? | | ???# # < #?????????????????????? | | ???# %# #?????????????????????? | | ???####### x%xx % ##?????????????????????? | | ?????????# #??????????????????????? | | ?????????# # #??????????????????????? | | ?????????# # #??????????????????????? | | ?????????# # # ##??????????????????????? | | ?????????# #???????????????????????? | | ?????????# # #???????????????????????? | | ?????????# x# #???????????????????????? | | ?????????## %####???????????x???????????? | | ??????????### " ??????????????????????????? | | ????????????# ??????????????????????????? | | ????????????#####?????????????????????????? | | ??????????????????????????????????????????? | | ??????????????????????????????????????????? | | ??????????????????????????????????????????? | | ??????????????????????????????????????????? | | ??????????????????????????????????????????? | +----------------------------------------------------+ Best States ------------- Heat Dissipation 25 Energy Generation 10 Energy Capacity 250 Matter Stores 300 Matter Capacity 300 Sight Range 16 Robot Scan Range 20 Terrain Scan Density 10 ECM Strength 1 Resistance: KI 35 Resistance: TH 35 Resistance: EX 35 Resistance: EM 35 Resistance: I 35 Resistance: S 35 Resistance: P 35 Propulsion Shielding 33 Evasion (%) 62 Targeting Accuracy 5 Offensive Hacking 20 Item Schematics ----------------- Flight Unit | -10/Materials | Hacked Propulsion Shielding | -10/Materials | Hacked Datajack | -10/Materials | Hacked Hammer | -10/Materials | Hacked Robot Schematics ------------------ None Fabricated ------------ Nothing Repaired ---------- Nothing Alien Tech Used ----------------- None Achievements -------------- Hehehe Challenges ------------ None Game ------ Seed AccelerationPortableFlakker Manual? 0 Play Time 00:44:58 Cumulative 143.3 hours Start 2025.06.10 @ 19:19:50 End 2025.06.10 @ 20:08:22 Sessions 1 Manual Loads 0 Difficulty Explorer Special Mode None Game No. 21 Rogue 1 Adventurer 11 Explorer 9 Win Type - Total 4 Types 3/0/1/0/0/0/0/0/0/0 Lore% 28 Gallery% 47 Achievement% 55 Wizard Run 0 Options --------- Layout 1 ASCII 0 Keyboard 0 Movement Arrows Keybinds 0 Fullscreen 1 Font 24/Smallcaps Map View 50x35 Zoom Use 0% Tactical HUD 1 Map Filters NONE Filters NONE Steam 1 RUN: 25049ed3-0eb4-49f5-91fa-9b5be2bb8fc7